bitfinex/quotes_SOLUSD_20250717
["timestamp","ask_amount","ask_price","bid_price","bid_amount"]
[1752793379559,0.03,175.85,175.84,12.50145109]
[1752793381533,0.03,175.85,175.84,6.68094878]
[1752793381734,0.69,175.85,175.83,120.48722591]
[1752793381943,0.66,175.84,175.83,26.0]
[1752793382548,0.03,175.85,175.83,31.82050231]
[1752793382950,0.03,175.85,175.83,37.50781391]
[1752793383147,0.69,175.85,175.83,37.50781391]
[1752793383761,0.69,175.85,175.84,5.82050231]
[1752793383943,0.69,175.85,175.84,11.50749048]
[1752793384352,0.03,175.85,175.84,11.50749048]
[1752793384567,0.69,175.85,175.83,5.82050231]
[1752793384761,0.03,175.85,175.83,5.82050231]
[1752793385069,0.66,175.84,175.83,5.82050231]
[1752793385981,0.66,175.84,175.82,11.56804538]
[1752793386649,0.03,175.85,175.83,5.82050231]
[1752793387355,0.03,175.85,175.84,5.82050231]
[1752793388857,0.03,175.85,175.84,12.21749048]
[1752793389059,0.03,175.85,175.84,11.50749048]
[1752793389770,0.03,175.85,175.84,5.82050231]
[1752793389944,0.69,175.85,175.82,5.88050231]
[1752793390147,1.40083309,175.85,175.82,0.06]
[1752793390466,1.6661,175.84,175.82,0.06]
[1752793390850,0.66,175.83,175.82,0.06]
[1752793392258,1.6661,175.84,175.82,5.88050231]
[1752793392963,1.6661,175.84,175.82,0.06]
[1752793393146,1.6661,175.84,175.82,5.88050231]
[1752793393491,2.3261,175.84,175.82,5.88050231]
[1752793394441,1.6661,175.84,175.83,5.82050231]
[1752793394747,0.03,175.85,175.83,6.53050231]
[1752793395067,0.03,175.85,175.84,11.50749048]
[1752793396341,0.69,175.85,175.83,5.82050231]
[1752793396541,0.69,175.85,175.84,5.82050231]
[1752793398956,1.40083309,175.85,175.82,0.06]
[1752793399145,7.08757591,175.85,175.82,0.06]
[1752793399348,7.08757591,175.85,175.83,0.06]
[1752793399349,0.66,175.84,175.83,0.06]
[1752793399756,8.01360231,175.84,175.83,0.06]
[1752793400148,24.79828628,175.84,175.83,0.06]
[1752793400959,30.48527445,175.84,175.83,0.06]
[1752793404351,24.66477214,175.84,175.83,0.06]
[1752793404645,32.4531,175.84,175.83,0.06]
[1752793404867,31.7931,175.84,175.83,0.06]
[1752793405045,31.7931,175.84,175.83,5.88050231]
[1752793405046,30.26,175.84,175.83,5.88050231]
[1752793405448,30.26,175.84,175.83,6.55050231]
[1752793406147,0.03,175.85,175.83,6.55050231]
[1752793406347,0.03,175.85,175.84,12.17749048]
[1752793407950,0.03,175.85,175.84,11.50749048]
[1752793408250,0.03,175.85,175.84,5.82050231]
[1752793408452,0.03,175.85,175.83,5.74731152]
[1752793408774,0.03,175.85,175.84,5.82050231]
[1752793409171,0.03,175.85,175.84,32.49050231]
[1752793410472,0.03,175.85,175.84,38.17749048]
[1752793411270,0.03,175.85,175.84,37.50749048]
[1752793411472,0.03,175.85,175.84,26.0]
[1752793411774,0.03,175.85,175.84,37.50749048]
[1752793412677,0.03,175.85,175.84,38.17749048]
[1752793420980,0.03,175.85,175.84,32.35698817]
[1752793421277,0.03,175.85,175.84,38.17749048]
[1752793421865,0.03,175.85,175.84,38.23749048]
[1752793422064,0.03,175.85,175.84,37.56749048]
[1752793422871,0.74,175.85,175.84,26.06]
[1752793423094,0.03,175.85,175.84,37.56749048]
[1752793424192,0.03,175.85,175.84,38.23749048]
[1752793424584,0.03,175.85,175.84,37.56749048]
[1752793424785,0.74,175.85,175.84,26.06]
[1752793425095,0.74,175.85,175.84,37.56749048]
[1752793425285,0.03,175.85,175.84,31.88050231]
[1752793425674,0.03,175.85,175.84,37.56749048]
[1752793426691,0.03,175.85,175.84,31.88050231]
[1752793431182,0.74,175.85,175.84,31.88050231]
[1752793431572,0.74,175.85,175.84,0.06]
[1752793431774,30.92,175.85,175.84,0.06]
[1752793432778,36.60666477,175.85,175.84,0.06]
[1752793433804,30.92,175.85,175.84,0.06]
[1752793435299,36.60666477,175.85,175.84,0.06]
[1752793436091,30.92,175.85,175.84,0.06]
[1752793437280,36.60666477,175.85,175.84,0.06]
[1752793437598,30.92,175.85,175.84,0.06]
[1752793437809,31.63083309,175.85,175.84,0.06]
[1752793438484,37.31749786,175.85,175.84,0.06]
[1752793438676,36.60666477,175.85,175.84,0.06]
[1752793438880,30.92,175.85,175.84,0.06]
[1752793439089,37.31749786,175.85,175.84,0.06]
[1752793439782,31.63083309,175.85,175.84,0.06]
[1752793441605,31.63083309,175.85,175.84,6.53050231]
[1752793441606,0.03,175.85,175.84,6.53050231]
[1752793442603,0.03,175.85,175.84,95.33050231]
[1752793442791,0.03,175.85,175.84,101.01749048]
[1752793444301,30.19,175.9,175.87,26.0]
[1752793444504,0.03,175.9,175.89,5.82050231]
[1752793444704,0.03,175.9,175.89,12.15587384]
[1752793445208,0.03,175.9,175.89,17.97637615]
[1752793446085,0.03,175.9,175.89,12.15587384]
[1752793446392,0.03,175.9,175.89,17.97637615]
[1752793446616,0.03,175.9,175.89,22.49266838]
[1752793446789,0.03,175.9,175.89,39.27735235]
[1752793446993,0.1,175.92,175.91,26.0]
[1752793447191,0.1,175.92,175.91,32.10389718]
[1752793447398,0.1,175.92,175.91,32.75389718]
[1752793447810,0.1,175.92,175.91,32.47050231]
[1752793448003,0.1,175.92,175.91,38.15522745]
[1752793448202,0.1,175.92,175.9,6.10391328]
[1752793448203,0.1,175.92,175.9,5.68495109]
[1752793448402,0.76,175.92,175.9,5.68495109]
[1752793448606,0.76,175.92,175.89,26.0]
[1752793448607,0.76,175.92,175.91,5.82050231]
[1752793448803,1.6912,175.92,175.88,5.82050231]
[1752793448989,0.71059064,175.91,175.87,5.82050231]
[1752793449303,0.66,175.9,175.88,26.0]
[1752793449503,0.71059064,175.91,175.89,5.82050231]
[1752793449711,38.20616205,175.92,175.89,5.82050231]
[1752793450011,0.66,175.91,175.89,5.82050231]
[1752793450205,0.66,175.9,175.89,5.82050231]
[1752793450399,32.4712,175.92,175.89,5.82050231]
[1752793450613,32.4712,175.92,175.9,5.82050231]
[1752793451725,1.6912,175.92,175.9,5.82050231]
[1752793452400,1.6912,175.92,175.91,5.82050231]
[1752793453188,0.1,175.92,175.91,5.82050231]
[1752793453486,0.1,175.92,175.91,6.47050231]
[1752793454503,0.1,175.92,175.91,12.15522745]
[1752793457892,0.1,175.92,175.91,11.50522745]
[1752793458392,0.1,175.92,175.91,5.82050231]
[1752793459510,0.1,175.92,175.91,11.50522745]
[1752793460293,0.1,175.92,175.91,12.15522745]
[1752793461889,0.1,175.92,175.91,101.23862232]
[1752793463321,0.1,175.92,175.91,126.30522745]
[1752793463693,0.1,175.92,175.91,127.01522745]
[1752793466020,0.1,175.92,175.91,38.21522745]
[1752793466211,0.1,175.92,175.91,38.49862232]
[1752793468816,0.1,175.92,175.91,37.50522745]
[1752793469123,0.1,175.92,175.91,31.68472514]
[1752793469293,0.1,175.92,175.91,37.50522745]
[1752793471219,0.1,175.92,175.91,38.21522745]
[1752793471404,0.1,175.92,175.91,38.49865454]
[1752793471592,0.1,175.92,175.91,26.99342709]
[1752793471793,0.82,175.92,175.91,31.82050231]
[1752793472823,0.82,175.92,175.9,5.82050231]
[1752793473192,0.72,175.91,175.9,31.82050231]
[1752793475304,0.1,175.92,175.9,31.82050231]
[1752793475617,0.1,175.92,175.91,5.82050231]
[1752793475811,0.82,175.92,175.91,5.82050231]
[1752793479220,0.82,175.92,175.89,26.0]
[1752793479416,0.72,175.91,175.9,5.82050231]
[1752793480221,0.72,175.91,175.88,5.82050231]
[1752793480418,6.40482923,175.91,175.87,120.62050231]
[1752793480605,0.72,175.9,175.87,31.82050231]
[1752793481713,1.5951,175.91,175.89,5.82050231]
[1752793481918,1.5951,175.91,175.9,5.82050231]
[1752793485038,1.5951,175.91,175.9,5.88050231]
[1752793485902,0.1,175.92,175.9,37.56551138]
[1752793486227,0.1,175.92,175.91,6.53050231]
[1752793487328,0.1,175.92,175.91,12.21522745]
[1752793487827,0.1,175.92,175.91,38.49862232]
[1752793488831,0.1,175.92,175.91,37.78862232]
[1752793489531,0.1,175.92,175.91,37.50522745]
[1752793490310,0.1,175.92,175.91,38.21522745]
[1752793490707,0.1,175.92,175.91,37.50522745]
[1752793491717,0.1,175.92,175.91,38.49865454]
[1752793493607,0.1,175.92,175.91,31.68472514]
[1752793493910,0.1,175.92,175.91,37.50522745]
[1752793494328,0.1,175.92,175.91,37.78862232]
[1752793494517,0.1,175.92,175.91,38.44862232]
[1752793494723,0.1,175.92,175.91,37.78862232]
[1752793494924,0.1,175.92,175.91,37.50522745]
[1752793496635,2.4042,175.92,175.9,0.06]
[1752793496818,1.37059064,175.91,175.9,0.06]
[1752793497009,0.66,175.91,175.9,0.06]
[1752793498732,6.34472514,175.91,175.9,0.06]
[1752793498933,12.16522745,175.91,175.9,0.06]
[1752793499138,28.94991142,175.91,175.9,0.06]
[1752793500017,28.94991142,175.91,175.84,5.88050231]
[1752793500212,0.66,175.9,175.88,5.82050231]
[1752793500530,30.64,175.89,175.86,5.82050231]
[1752793500715,0.66,175.88,175.86,5.82050231]
[1752793501835,29.98,175.89,175.87,5.82050231]
[1752793502036,29.98,175.89,175.88,5.82050231]
[1752793502837,29.98,175.89,175.84,26.06]
[1752793502838,30.64,175.89,175.86,5.82050231]
[1752793503131,30.64,175.89,175.87,5.82050231]
[1752793503339,0.66,175.88,175.84,0.06]
[1752793503523,29.98,175.89,175.86,5.82050231]
[1752793503524,0.66,175.87,175.86,5.82050231]
[1752793503723,29.98,175.89,175.84,6.40692806]
[1752793504028,0.66,175.88,175.85,5.82050231]
[1752793504228,7.05650301,175.88,175.84,0.06]
[1752793504436,0.66,175.87,175.84,0.06]
[1752793504743,0.66,175.86,175.84,5.88050231]
[1752793505313,12.47350301,175.88,175.84,0.06]
[1752793505631,0.66,175.85,175.84,0.06]
[1752793505939,30.62,175.85,175.84,0.06]
[1752793506322,29.96,175.85,175.84,0.06]
[1752793506535,30.62,175.85,175.84,0.06]
[1752793506718,36.30666477,175.85,175.84,0.06]
[1752793507535,30.62,175.85,175.84,0.06]
[1752793508123,36.30666477,175.85,175.84,0.06]
[1752793509025,42.12716708,175.85,175.84,0.06]
[1752793509231,58.91185105,175.85,175.84,0.06]
[1752793509927,16.78468397,175.84,175.83,0.06]
[1752793510116,29.66304797,175.84,175.83,0.06]
[1752793510649,37.70204797,175.84,175.82,0.06]
[1752793510944,6.48050231,175.83,175.82,1e-08]
[1752793512027,16.78468397,175.82,175.77,0.06]
[1752793512225,11.50936405,175.79,175.77,0.06]
[1752793512437,30.67111616,175.78,175.77,0.06]
[1752793512619,31.33111616,175.78,175.77,0.06]
[1752793512825,38.72551847,175.78,175.77,0.06]
[1752793513153,32.90501616,175.78,175.77,0.06]
[1752793513825,38.72551847,175.78,175.77,0.06]
[1752793514224,61.19913178,175.78,175.77,0.06]
[1752793516151,67.20483178,175.78,175.77,0.06]
[1752793516637,31.42432947,175.78,175.77,0.06]
[1752793516838,67.20483178,175.78,175.77,0.06]
[1752793520352,67.20483178,175.78,175.76,0.06]
[1752793520563,16.78468397,175.76,175.74,0.06]
[1752793520739,36.47173986,175.75,175.74,1e-08]
[1752793520933,37.13173986,175.75,175.74,1e-08]
[1752793521138,26.0,175.73,175.72,1e-08]
[1752793521329,59.48500477,175.73,175.72,1e-08]
[1752793521662,60.14500477,175.73,175.72,1e-08]
[1752793522030,54.32450246,175.73,175.72,1e-08]
[1752793522239,60.14500477,175.73,175.72,1e-08]
[1752793522435,65.83555276,175.73,175.72,1e-08]
[1752793522956,35.89555276,175.73,175.72,1e-08]
[1752793523161,30.07505045,175.73,175.72,1e-08]
[1752793523348,65.83555276,175.73,175.72,1e-08]
[1752793524437,65.83555276,175.73,175.68,0.06]
[1752793524438,16.78468397,175.72,175.68,0.06]
[1752793524646,5.82050231,175.69,175.68,0.06]
[1752793525254,36.43050231,175.69,175.68,0.06]
[1752793525662,53.21518628,175.69,175.68,0.06]
[1752793526348,58.90702986,175.69,175.68,0.06]
[1752793527254,58.90702986,175.69,175.66,0.2]
[1752793527453,22.60518628,175.67,175.66,0.2]
[1752793527657,52.54518628,175.67,175.66,0.2]
[1752793527839,53.21518628,175.67,175.66,0.2]
[1752793528449,58.90767788,175.67,175.66,0.2]
[1752793528663,35.6324916,175.67,175.66,0.2]
[1752793528964,42.12299391,175.67,175.66,0.2]
[1752793529767,58.90767788,175.67,175.66,0.2]
[1752793530293,42.12299391,175.67,175.66,0.2]
[1752793531259,35.6324916,175.67,175.66,0.2]
[1752793531460,0.71152094,175.68,175.66,6.70050231]
[1752793531687,5.69157714,175.7,175.67,0.68]
[1752793531980,30.65148044,175.69,175.67,0.68]
[1752793532560,36.34362384,175.69,175.66,6.02050231]
[1752793532940,36.34362384,175.69,175.66,0.2]
[1752793533142,36.34362384,175.69,175.66,6.02050231]
[1752793533346,36.34362384,175.69,175.66,6.70050231]
[1752793533649,0.67,175.68,175.66,0.2]
[1752793533850,31.32156145,175.67,175.66,0.2]
[1752793534164,37.14206376,175.67,175.66,0.2]
[1752793534655,42.83455536,175.67,175.66,0.2]
[1752793534854,12.89455536,175.67,175.66,0.2]
[1752793535055,30.63156145,175.67,175.66,0.2]
[1752793535257,29.92,175.67,175.66,6.70050231]
[1752793535458,35.6124916,175.67,175.66,0.2]
[1752793535967,42.10299391,175.67,175.66,0.2]
[1752793536143,58.88767788,175.67,175.66,0.2]
[1752793536344,58.88767788,175.67,175.65,0.2]
[1752793536345,16.78468397,175.66,175.65,0.2]
[1752793536578,25.50668823,175.66,175.65,0.2]
[1752793536869,31.19950389,175.66,175.65,0.2]
[1752793537042,31.19950389,175.66,175.65,1e-08]
[1752793537244,22.92958397,175.65,175.64,1e-08]
[1752793537445,64.01400311,175.65,175.64,1e-08]
[1752793537673,16.78468397,175.61,175.6,1e-08]
[1752793537857,53.23699084,175.61,175.6,1e-08]
[1752793538046,53.90699084,175.61,175.6,1e-08]
[1752793538246,61.37239315,175.61,175.6,1e-08]
[1752793538474,194.28577441,175.61,175.6,1e-08]
[1752793538641,199.26840638,175.61,175.6,1e-08]
[1752793538969,66.35502512,175.61,175.6,1e-08]
[1752793539269,66.35502512,175.61,175.51,0.06]
[1752793539270,28.64668628,175.57,175.51,0.06]
[1752793539446,59.27865301,175.57,175.51,0.06]
[1752793539652,59.94865301,175.57,175.51,0.06]
[1752793539844,59.94865301,175.57,175.52,0.68]
[1752793539845,23.5381507,175.57,175.52,0.68]
[1752793540063,36.45246904,175.57,175.52,0.68]
[1752793540367,37.12246904,175.57,175.51,0.06]
[1752793540663,37.12246904,175.57,175.51,6.56050231]
[1752793540966,42.81820293,175.57,175.51,6.56050231]
[1752793541374,42.81820293,175.57,175.51,12.25816253]
[1752793541558,42.14820293,175.57,175.52,0.68]
[1752793542079,59.6028869,175.57,175.51,0.06]
[1752793542460,16.78468397,175.56,175.51,0.06]
[1752793542667,5.82050231,175.53,175.51,0.06]
[1752793542963,16.78468397,175.51,175.48,0.06]
[1752793543271,9.35515595,175.49,175.48,0.06]
[1752793543776,10.02515595,175.49,175.48,0.06]
[1752793544069,9.35515595,175.49,175.48,0.06]
[1752793544773,30.63225071,175.5,175.48,0.06]
[1752793544956,15.72348633,175.49,175.48,0.06]
[1752793545160,32.5081703,175.49,175.48,0.06]
[1752793546256,32.5081703,175.49,175.48,1e-08]
[1752793548966,62.4281703,175.49,175.48,1e-08]
[1752793549775,62.4281703,175.49,175.47,1e-08]
[1752793549776,16.78468397,175.48,175.47,1e-08]
[1752793549973,27.5221718,175.48,175.47,1e-08]
[1752793550276,16.78468397,175.45,175.41,0.2]
[1752793550480,26.13983992,175.42,175.41,0.2]
[1752793550672,46.70468397,175.42,175.41,0.2]
[1752793550870,0.7124943,175.44,175.41,0.2]
[1752793551091,29.92,175.43,175.41,0.2]
[1752793551268,0.71257553,175.42,175.41,0.2]
[1752793552282,27.52241545,175.42,175.41,0.2]
[1752793552954,33.22301971,175.42,175.41,0.2]
[1752793555287,32.55301971,175.42,175.41,0.2]
[1752793555479,33.23301971,175.42,175.41,0.2]
[1752793555976,40.00773148,175.42,175.41,0.2]
[1752793556281,29.94,175.42,175.41,10.20515595]
[1752793556875,29.94,175.42,175.41,15.9060852]
[1752793557183,29.94,175.42,175.41,10.20515595]
[1752793557480,29.94,175.42,175.41,0.85]
[1752793558682,35.64060426,175.42,175.41,0.2]
[1752793558872,36.35317979,175.42,175.41,0.2]
[1752793559582,46.20833574,175.42,175.41,0.2]
[1752793559791,45.70833574,175.42,175.41,0.2]
[1752793559969,63.17301971,175.42,175.41,0.2]
[1752793560491,62.49301971,175.42,175.41,0.2]
[1752793561068,53.13786376,175.42,175.41,0.2]
[1752793561391,63.17301971,175.42,175.41,0.2]
[1752793561580,53.81786376,175.42,175.41,0.2]
[1752793561768,63.17301971,175.42,175.41,0.2]
[1752793562871,62.49301971,175.42,175.41,0.2]
[1752793563085,63.17301971,175.42,175.41,0.2]
[1752793563491,54.54773574,175.42,175.4,1e-08]
[1752793563704,10.03515595,175.41,175.38,0.2]
[1752793563872,35.35515595,175.39,175.38,0.2]
[1752793564405,26.0,175.39,175.38,0.2]
[1752793564689,39.95515595,175.39,175.38,0.2]
[1752793564870,30.6,175.39,175.38,0.2]
[1752793565079,39.95515595,175.39,175.38,0.2]
[1752793565386,45.65673528,175.39,175.38,0.2]
[1752793565889,5.70157933,175.39,175.38,0.2]
[1752793566119,44.97673528,175.39,175.38,0.2]
[1752793566272,45.68943269,175.39,175.38,0.2]
[1752793567067,62.47411666,175.39,175.38,0.2]
[1752793567267,63.15411666,175.39,175.38,0.2]
[1752793568273,62.47411666,175.39,175.38,0.2]
[1752793568785,0.71269741,175.39,175.38,0.2]
[1752793569096,29.92,175.39,175.38,0.85]
[1752793569596,6.41146407,175.47,175.38,15.90706038]
[1752793569770,29.92,175.46,175.42,9.35515595]
[1752793569973,29.92,175.46,175.38,5.90190443]
[1752793569974,0.71245369,175.45,175.43,0.65]
[1752793570182,29.92,175.44,175.43,0.65]
[1752793570382,29.92,175.44,175.43,10.00515595]
[1752793570602,0.71237248,175.47,175.43,10.00515595]
[1752793570603,29.92,175.45,175.43,10.00515595]
[1752793570898,29.92,175.45,175.44,10.00515595]
[1752793571279,29.92,175.45,175.42,0.65]
[1752793571487,0.7124943,175.44,175.42,0.65]
[1752793571707,29.92,175.43,175.42,0.65]
[1752793572273,29.92,175.43,175.41,0.06]
[1752793572497,0.71257553,175.42,175.41,0.06]
[1752793573180,6.41317979,175.42,175.41,0.06]
[1752793573679,15.76833574,175.42,175.41,0.06]
[1752793573884,6.41317979,175.42,175.41,0.06]
[1752793575593,6.91317979,175.42,175.41,0.06]
[1752793576488,1.21257553,175.42,175.41,0.06]
[1752793576667,0.71257553,175.42,175.41,0.71]
[1752793576876,0.71257553,175.42,175.41,0.06]
[1752793577379,33.23301971,175.42,175.41,0.06]
[1752793580375,33.73301971,175.42,175.41,0.06]
[1752793581120,24.37786376,175.42,175.41,0.06]
[1752793581299,17.9972595,175.42,175.41,0.06]
[1752793581472,17.9972595,175.42,175.41,0.71]
[1752793581473,1.21257553,175.42,175.41,0.71]
[1752793582183,29.9,175.42,175.41,10.06515595]
[1752793582606,29.9,175.42,175.41,0.71]
[1752793582921,29.9,175.42,175.41,15.7660852]
[1752793583785,0.03,175.45,175.41,15.7660852]
[1752793583999,0.03,175.45,175.44,9.35515595]
[1752793584503,0.03,175.45,175.44,10.07515595]
[1752793584881,0.03,175.45,175.44,15.77511035]
[1752793585106,0.03,175.45,175.41,14.59967163]
[1752793585107,0.74245369,175.45,175.41,0.06]
[1752793585279,29.9,175.44,175.42,9.35515595]
[1752793585479,29.9,175.44,175.43,10.07515595]
[1752793587600,29.9,175.44,175.43,15.77543526]
[1752793587805,0.03,175.45,175.43,15.77543526]
[1752793587996,0.03,175.45,175.44,9.35515595]
[1752793588198,0.03,175.45,175.44,10.07515595]
[1752793588809,0.03,175.45,175.44,15.77511035]
[1752793589304,0.03,175.45,175.44,41.77511035]
[1752793591816,0.03,175.45,175.44,25.1302663]
[1752793592405,0.03,175.45,175.44,41.91495027]
[1752793592602,29.88,175.51,175.44,62.96503627]
[1752793592815,0.03,175.53,175.5,9.35515595]
[1752793593019,0.03,175.53,175.52,15.05251237]
[1752793593697,0.03,175.53,175.52,15.77251237]
[1752793594725,0.03,175.53,175.52,32.55719634]
[1752793597095,29.88,175.6,175.52,32.55719634]
[1752793597096,29.88,175.6,175.55,26.0]
[1752793597313,29.88,175.6,175.59,9.35515595]
[1752793597496,2.4234235,175.63,175.59,10.07515595]
[1752793597809,2.4234235,175.63,175.56,5.69605832]
[1752793597810,0.8117235,175.63,175.61,9.35515595]
[1752793598010,0.1,175.63,175.62,9.35515595]
[1752793599512,0.1,175.63,175.62,10.07515595]
[1752793599714,0.1,175.63,175.62,15.76926823]
[1752793601391,0.1,175.63,175.62,0.72]
[1752793601594,0.1,175.63,175.61,31.69435301]
[1752793601595,0.1,175.63,175.61,26.0]
[1752793601824,0.1,175.63,175.62,26.0]
[1752793601995,0.68,175.62,175.58,9.35515595]
[1752793602197,0.68,175.61,175.58,9.35515595]
[1752793602429,31.5754,175.63,175.59,9.35515595]
[1752793602597,0.71176403,175.62,175.6,9.35515595]
[1752793602787,0.71176403,175.62,175.59,9.35515595]
[1752793603209,1.39176403,175.62,175.59,9.35515595]
[1752793603396,0.68,175.61,175.57,9.35515595]
[1752793603597,1.3918451,175.6,175.57,9.35515595]
[1752793604025,0.68,175.59,175.55,9.35515595]
[1752793604197,0.71192618,175.58,175.55,9.35515595]
[1752793604520,0.71192618,175.58,175.56,9.35515595]
[1752793605192,0.71192618,175.58,175.55,9.35515595]
[1752793605799,0.68,175.57,175.53,9.35515595]
[1752793605998,1.39200729,175.56,175.53,9.35515595]
[1752793606407,0.71200729,175.56,175.53,9.35515595]
[1752793606796,0.71200729,175.56,175.54,26.0]
[1752793607119,0.71196673,175.57,175.54,26.0]
[1752793607513,0.71196673,175.57,175.55,10.07515595]
[1752793607713,16.44220915,175.59,175.54,10.07515595]
[1752793607921,0.68,175.58,175.54,9.35515595]
[1752793608118,1.39196673,175.57,175.53,35.35515595]
[1752793609625,1.39196673,175.57,175.53,36.07515595]
[1752793609925,0.71196673,175.57,175.53,41.7720899]
[1752793610112,0.71192618,175.58,175.54,9.35515595]
[1752793610319,0.71192618,175.58,175.55,0.72]
[1752793610623,0.71192618,175.58,175.55,9.35515595]
[1752793610999,0.71192618,175.58,175.54,9.35515595]
[1752793611195,1.39192618,175.58,175.54,9.35515595]
[1752793612126,0.71192618,175.58,175.55,9.35515595]
[1752793612308,0.71196673,175.57,175.55,10.07515595]
[1752793612622,0.71188564,175.59,175.55,9.35515595]
[1752793612837,1.39188564,175.59,175.55,9.35515595]
[1752793613728,31.23188564,175.59,175.55,9.35515595]
[1752793614223,36.92706231,175.59,175.55,9.35515595]
[1752793614427,0.72,175.58,175.54,9.35515595]
[1752793614634,0.71196673,175.57,175.54,9.35515595]
[1752793614818,0.72,175.56,175.52,9.35515595]
[1752793615018,0.71196673,175.57,175.51,10.03515595]
[1752793615019,31.27204784,175.55,175.51,10.03515595]
[1752793615218,0.72,175.54,175.49,0.68]
[1752793615415,1.43212898,175.53,175.49,9.35515595]
[1752793616908,10.07515595,175.52,175.47,10.03515595]
[1752793617133,31.25221013,175.51,175.47,15.73413422]
[1752793617428,0.72,175.5,175.46,9.35515595]
[1752793617632,0.71229129,175.49,175.46,9.35515595]
[1752793618646,0.71229129,175.49,175.45,15.05476684]
[1752793618820,0.71229129,175.49,175.45,10.03515595]
[1752793619019,0.71229129,175.49,175.45,15.73474334]
[1752793620824,29.82,175.51,175.48,9.35515595]
[1752793621027,29.82,175.51,175.49,10.03515595]
[1752793621329,29.82,175.55,175.5,36.03515595]
[1752793621542,29.82,175.55,175.53,9.35515595]
[1752793621855,29.82,175.55,175.53,10.03515595]
[1752793622225,29.82,175.55,175.47,9.35515595]
[1752793622226,10.07515595,175.54,175.47,9.35515595]
[1752793622436,9.35515595,175.52,175.47,26.0]
[1752793622621,30.53221013,175.51,175.47,26.0]
[1752793622822,0.72,175.5,175.47,26.0]
[1752793623256,29.82,175.51,175.49,9.35515595]
[1752793623425,29.82,175.51,175.48,0.68]
[1752793623426,29.82,175.51,175.5,9.35515595]
[1752793623627,29.82,175.51,175.5,10.03515595]
[1752793624234,29.82,175.54,175.5,10.03515595]
[1752793624442,29.82,175.54,175.52,9.35515595]
[1752793625165,29.82,175.54,175.53,9.35515595]
[1752793625927,29.82,175.55,175.53,9.35515595]
[1752793626162,29.82,175.55,175.54,9.35515595]
[1752793627323,0.74192618,175.58,175.54,10.03515595]
[1752793627668,0.74192618,175.58,175.57,9.35515595]
[1752793627669,0.03,175.58,175.57,9.35515595]
[1752793627966,0.03,175.58,175.57,10.03515595]
[1752793629053,0.03,175.58,175.57,15.73088984]
[1752793631933,0.03,175.58,175.57,32.8017208]
[1752793632245,0.1,175.63,175.6,26.0]
[1752793632547,0.1,175.63,175.62,9.35515595]
[1752793632932,0.1,175.63,175.62,10.03515595]
[1752793633127,0.03,175.69,175.66,26.0]
[1752793633332,0.03,175.69,175.68,9.35515595]
[1752793633641,0.03,175.69,175.68,41.04732352]
[1752793633844,0.03,175.69,175.68,41.72732352]
[1752793634742,0.03,175.69,175.68,32.37216757]
[1752793634938,0.03,175.69,175.68,41.72732352]
[1752793635727,0.03,175.69,175.68,16.01257894]
[1752793635932,0.03,175.69,175.68,49.44210696]
[1752793636136,0.03,175.69,175.68,6.37216757]
[1752793636347,0.03,175.69,175.68,15.72732352]
[1752793637941,0.03,175.69,175.68,41.72732352]
[1752793638251,0.03,175.69,175.68,15.72732352]
[1752793638629,0.03,175.69,175.68,25.08247947]
[1752793638835,0.03,175.69,175.68,41.86716344]
[1752793639047,0.03,175.69,175.68,71.64716344]
[1752793639241,29.9,175.76,175.71,26.0]
[1752793639437,29.9,175.76,175.75,9.35515595]